fUST/lending_fUST_20260106
["ID","MTS","AMOUNT","RATE_DAILY","PERIOD"]
[400542077,1767707822422,500.0,0.00030136,120]
[400542078,1767707827869,301.67566042,0.00030136,120]
[400542079,1767707842014,500.0,0.00030136,120]
[400542081,1767707933137,500.0,0.00030136,120]
[400542082,1767707958515,500.0,0.00030136,120]
[400542083,1767707958769,362.98,0.00030136,120]
[400542084,1767707965703,289.16227677,0.00030136,120]
[400542085,1767707994272,500.0,0.00030136,120]
[400542086,1767707997700,500.0,0.00030136,120]
[400542087,1767708006302,500.0,0.00030136,120]
[400542088,1767708006563,500.0,0.00030136,120]
[400542089,1767708006802,344.48,0.00030136,120]
[400542090,1767708008754,500.0,0.00030136,120]
[400542091,1767708010637,500.0,0.00030136,120]
[400542092,1767708013330,500.0,0.00030136,120]
[400542093,1767708015658,500.0,0.00030136,120]
[400542094,1767708022993,257.38815573,0.00030136,120]
[400542095,1767708024983,500.0,0.00030136,120]
[400542096,1767708032120,500.0,0.00030136,120]
[400542097,1767708032200,500.0,0.00030136,120]
[400542098,1767708033967,500.0,0.00030136,120]
[400542099,1767708034453,487.03411584,0.00030136,120]
[400542100,1767708038047,350.48924253,0.00030136,120]
[400542101,1767708043200,500.0,0.00030136,120]
[400542102,1767708045684,500.0,0.00030136,120]
[400542103,1767708052243,500.0,0.00030136,120]
[400542104,1767708053150,500.0,0.00030136,120]
[400542105,1767708053230,500.0,0.00030136,120]
[400542106,1767708056062,500.0,0.00030136,120]
[400542107,1767708059445,375.1403438,0.00030136,120]
[400542108,1767708065004,500.0,0.00030136,120]
[400542109,1767708070274,500.0,0.00030136,120]
[400542110,1767708072099,500.0,0.00030136,120]
[400542111,1767708073958,500.0,0.00030136,120]
[400542112,1767708075838,500.0,0.00030136,120]
[400542113,1767708076213,152.69750811,0.00030136,120]
[400542114,1767708079328,500.0,0.00030136,120]
[400542115,1767708084286,500.0,0.00030136,120]
[400542116,1767708084807,500.0,0.00030136,120]
[400542117,1767708086176,589.11751422,0.00030136,120]
[400542118,1767708088506,500.0,0.00030136,120]
[400542119,1767708091214,500.0,0.00030136,120]
[400542120,1767708097692,500.0,0.00030136,120]
[400542121,1767708103266,500.0,0.00030136,120]
[400542122,1767708117785,500.0,0.00030136,120]
[400542123,1767708266136,505.34477526,0.00030136,120]
[400542124,1767708268260,569.88497754,0.00030136,120]
[400542125,1767708273682,527.00760217,0.00030136,120]
[400542126,1767708275365,351.79364254,0.00030136,120]
[400542127,1767708277152,500.0,0.00030136,120]
[400542128,1767708279221,346.72488489,0.00030136,120]
[400542129,1767708282523,504.86235084,0.00030136,120]
[400542130,1767708284530,202.15338517,0.00030136,120]
[400542131,1767708313926,263.20396846,0.00030136,120]
[400542132,1767708316018,565.12549313,0.00030136,120]
[400542133,1767708324938,500.0,0.00030136,120]
[400542134,1767708330256,500.0,0.00030136,120]
[400542135,1767708333981,500.92659758,0.00030136,120]
[400542136,1767708334210,500.0,0.00030136,120]
[400542137,1767708336045,278.14782714,0.00030136,120]
[400542138,1767708340992,503.40664364,0.00030136,120]
[400542139,1767708347478,423.93352896,0.00030136,120]
[400542140,1767708348019,500.53085519,0.00030136,120]
[400542141,1767708355723,205.36357967,0.00030136,120]
[400542142,1767708356032,501.74847507,0.00030136,120]
[400542143,1767708359470,504.05153018,0.00030136,120]
[400542144,1767708359544,544.62090089,0.00030136,120]
[400542145,1767708361261,560.76194988,0.00030136,120]
[400542146,1767708362210,502.36456475,0.00030136,120]
[400542147,1767708364045,509.23794534,0.00030136,120]
[400542148,1767708365130,428.00369694,0.00030136,120]
[400542149,1767708366147,500.0,0.00030136,120]
[400542150,1767708367464,507.26075763,0.00030136,120]
[400542151,1767708368843,458.33682772,0.00030136,120]
[400542152,1767708370860,500.0,0.00030136,120]
[400542153,1767708371072,220.27488723,0.00030136,120]
[400542154,1767708371481,507.03545657,0.00030136,120]
[400542155,1767708378386,500.0,0.00030136,120]
[400542156,1767708379366,247.0772227,0.00030136,120]
[400542157,1767708381775,500.0,0.00030136,120]
[400542158,1767708385895,229.04179059,0.00030136,120]
[400542159,1767708387561,500.0,0.00030136,120]
[400542160,1767708387637,500.0,0.00030136,120]
[400542161,1767708392405,500.0,0.00030136,120]
[400542162,1767708401342,296.50305849,0.00030136,120]
[400542582,1767708631842,-1165.4489358,0.00010476,2]
[400542616,1767708637872,-750.40770627,0.00010476,2]
[400542617,1767708637933,-1971.51095744,0.00010476,2]
[400542618,1767708637945,-1112.63240049,0.00010476,2]
[400542619,1767708637955,-2251.57707988,0.00010582,2]
[400542620,1767708637964,-241.78020497,0.00010689,2]
[400542621,1767708637974,-214.82,0.00011886,2]
[400542622,1767708637983,-183.41007226,0.00011886,2]
[400542623,1767708637995,-300.0,0.00012027,2]
[400542624,1767708638004,-2331.84439964,0.00012028,2]
[400542625,1767708638019,-191825.64595771,0.00012028,2]
[400542626,1767708638030,-810.13659507,0.00012028,2]
[400542627,1767708638041,-424.50976335,0.00012028,2]
[400542628,1767708638052,-571.82584435,0.00012028,2]
[400542629,1767708638063,-1070.74588555,0.00012028,2]
[400542643,1767708640286,-933.72446678,0.00012028,2]
[400542717,1767708646110,-1513.24810086,0.00011907,2]
[400542719,1767708646122,-972.0,0.00011907,2]
[400543360,1767708678467,500.0,0.00030136,120]
[400543785,1767708724380,500.0,0.00030136,120]
[400543786,1767708731251,500.0,0.00030136,120]
[400543787,1767708734934,500.0,0.00030136,120]
[400543788,1767708738791,500.0,0.00030136,120]
[400543789,1767708740665,500.0,0.00030136,120]
[400543790,1767708742587,500.0,0.00030136,120]
[400543791,1767708742750,500.0,0.00030136,120]
[400543792,1767708751810,500.0,0.00030136,120]
[400543793,1767708755929,500.0,0.00030136,120]
[400543794,1767708757223,500.0,0.00030136,120]
[400543795,1767708757784,449.38529385,0.00030136,120]
[400543796,1767708759634,500.0,0.00030136,120]
[400543797,1767708762348,500.0,0.00030136,120]
[400543798,1767708764672,511.21734371,0.00030136,120]
[400543799,1767708764869,500.0,0.00030136,120]
[400543800,1767708765126,500.0,0.00030136,120]
[400543801,1767708765374,500.0,0.00030136,120]
[400543802,1767708765620,500.0,0.00030136,120]
[400543803,1767708765857,500.0,0.00030136,120]
[400543804,1767708766267,500.0,0.00030136,120]
[400543805,1767708766544,500.0,0.00030136,120]
[400543806,1767708766632,500.0,0.00030136,120]
[400543807,1767708766803,540.52,0.00030136,120]
[400543808,1767708768852,500.0,0.00030136,120]
[400543809,1767708770432,500.0,0.00030136,120]
[400543810,1767708772376,500.0,0.00030136,120]
[400543811,1767708776006,500.0,0.00030136,120]
[400543812,1767708778203,500.0,0.00030136,120]
[400543813,1767708780056,500.0,0.00030136,120]
[400543814,1767708781926,570.06208133,0.00030136,120]
[400543815,1767708783931,500.0,0.00030136,120]
[400543816,1767708787128,500.0,0.00030136,120]
[400543817,1767708789329,500.0,0.00030136,120]
[400543818,1767708790967,500.0,0.00030136,120]
[400543819,1767708791169,500.0,0.00030136,120]
[400543820,1767708796054,500.0,0.00030136,120]
[400543821,1767708800007,500.0,0.00030136,120]
[400543822,1767708801830,500.0,0.00030136,120]
[400543823,1767708806757,500.0,0.00030136,120]
[400543824,1767708807300,500.0,0.00030136,120]
[400543825,1767708808849,500.0,0.00030136,120]
[400543826,1767708810895,500.0,0.00030136,120]
[400543827,1767708810972,500.0,0.00030136,120]
[400543828,1767708812952,364.0057785,0.00030136,120]
[400543829,1767708813413,500.0,0.00030136,120]
[400543830,1767708817379,500.0,0.00030136,120]
[400543831,1767708818890,500.0,0.00030136,120]
[400543832,1767708822932,500.0,0.00030136,120]
[400543833,1767708824861,500.0,0.00030136,120]
[400543834,1767708825510,500.0,0.00030136,120]
[400543835,1767708828325,500.0,0.00030136,120]
[400543836,1767708830252,500.0,0.00030136,120]
[400543837,1767708831927,507.18,0.00030136,120]
[400543838,1767708832283,500.0,0.00030136,120]
[400543839,1767708833951,450.0,0.00030136,120]
[400543840,1767708834046,500.0,0.00030136,120]
[400543841,1767708842460,500.0,0.00030136,120]
[400543842,1767708842728,179.69571561,0.00030136,120]
[400543843,1767708843125,500.0,0.00030136,120]
[400543844,1767708845568,500.0,0.00030136,120]
[400543846,1767708847525,231.22783396,0.00030136,120]
[400543847,1767708849555,500.0,0.00030136,120]
[400543848,1767708851579,500.0,0.00030136,120]
[400543849,1767708852922,500.0,0.00030136,120]
[400543850,1767708859087,500.0,0.00030136,120]
[400543851,1767708860950,610.96632034,0.00030136,120]
[400543852,1767708862741,500.0,0.00030136,120]
[400543853,1767708863035,500.0,0.00030136,120]
[400543854,1767708863277,500.0,0.00030136,120]
[400543855,1767708863527,500.0,0.00030136,120]
[400543856,1767708863763,186.18,0.00030136,120]
[400543857,1767708865888,160.3319326,0.00030136,120]
[400543858,1767708865960,500.0,0.00030136,120]
[400543859,1767708870894,500.0,0.00030136,120]
[400543860,1767708872690,480.92440792,0.00030136,120]
[400543861,1767708873333,201.6686923,0.00030136,120]
[400543862,1767708873711,500.0,0.00030136,120]
[400543863,1767708876513,500.0,0.00030136,120]
[400543864,1767708876978,500.0,0.00030136,120]
[400543865,1767708877785,244.00987451,0.00030136,120]
[400543866,1767708878788,500.0,0.00030136,120]
[400543867,1767708880181,500.0,0.00030136,120]
[400543868,1767708883114,500.0,0.00030136,120]
[400543869,1767708884960,500.0,0.00030136,120]
[400543870,1767708885189,500.0,0.00030136,120]
[400543871,1767708885441,500.0,0.00030136,120]
[400543872,1767708885703,500.0,0.00030136,120]
[400543873,1767708885949,500.0,0.00030136,120]
[400543874,1767708886170,500.0,0.00030136,120]
[400543875,1767708886397,500.0,0.00030136,120]
[400543876,1767708886495,500.0,0.00030136,120]
[400543877,1767708886726,500.0,0.00030136,120]
[400543878,1767708886959,273.35,0.00030136,120]
[400543879,1767708888391,500.0,0.00030136,120]
[400543880,1767708889964,500.0,0.00030136,120]
[400543881,1767708890239,234.86325007,0.00030136,120]
[400543882,1767708892019,500.0,0.00030136,120]
[400543884,1767708895228,555.4763186,0.00030136,120]
[400543885,1767708895676,380.23751217,0.00030136,120]
[400543886,1767708897421,584.37564039,0.00030136,120]
[400543887,1767708897895,500.0,0.00030136,120]
[400543888,1767708899744,493.1326626,0.00030136,120]
[400543889,1767708903006,500.0,0.00030136,120]
[400543890,1767708903258,199.66117749,0.00030136,120]
[400543891,1767708904635,500.0,0.00030136,120]
[400543892,1767708905350,500.0,0.00030136,120]
[400543893,1767708906654,500.0,0.00030136,120]
[400543894,1767708908499,500.0,0.00030136,120]
[400543896,1767708918612,500.0,0.00030136,120]
[400543897,1767708918939,495.29613732,0.00030136,120]
[400543898,1767708919065,535.53000877,0.00030136,120]
[400543899,1767708931714,500.0,0.00030136,120]
[400543900,1767708931943,500.0,0.00030136,120]
[400543901,1767708939918,531.71390428,0.00030136,120]
[400543902,1767708940211,407.85638125,0.00030136,120]
[400543903,1767708944932,157.0834306,0.00030136,120]
[400543904,1767708950823,500.0,0.00030136,120]
[400543905,1767708958394,500.0,0.00030136,120]
[400543906,1767708962540,481.61663722,0.00030136,120]
[400543907,1767708966105,386.18866103,0.00030136,120]
[400543909,1767708973864,465.00589358,0.00030136,120]
[400543995,1767708997639,611.53125218,0.00030136,120]
[400543997,1767708997728,213.37016705,0.00030136,120]
[400544023,1767708999705,274.45143927,0.00030136,120]
[400544025,1767708999810,500.0,0.00030136,120]
[400544053,1767709001914,515.16142173,0.00030136,120]
[400544096,1767709005324,478.76036045,0.00030136,120]
[400544190,1767709012763,500.0,0.00030136,120]
[400544221,1767709015216,500.0,0.00030136,120]
[400544248,1767709017325,500.0,0.00030136,120]
[400544303,1767709022173,482.41731698,0.00030136,120]
[400544305,1767709022297,450.0488671,0.00030136,120]
[400544308,1767709022401,500.0,0.00030136,120]
[400544331,1767709024206,429.99974476,0.00030136,120]
[400544360,1767709026403,500.0,0.00030136,120]
[400544381,1767709028043,500.0,0.00030136,120]
[400544403,1767709029862,500.0,0.00030136,120]
[400544423,1767709031321,500.0,0.00030136,120]
[400544425,1767709031391,500.0,0.00030136,120]
[400544430,1767709031709,500.0,0.00030136,120]
[400544449,1767709033087,500.0,0.00030136,120]
[400544455,1767709033507,500.0,0.00030136,120]
[400544475,1767709034912,533.08640574,0.00030136,120]
[400544488,1767709036472,500.0,0.00030136,120]
[400544494,1767709036885,500.0,0.00030136,120]
[400544538,1767709040410,500.0,0.00030136,120]
[400544551,1767709041327,1400.0,0.0003013,120]
[400544563,1767709042230,410.64146967,0.00030136,120]
[400544566,1767709042454,486.52649649,0.00030136,120]
[400544571,1767709043006,218.00752364,0.00030136,120]
[400544575,1767709043158,500.0,0.00030136,120]
[400544584,1767709046748,260.34364206,0.00030136,120]
[400544585,1767709047619,500.0,0.00030136,120]
[400544586,1767709049293,595.90233675,0.00030136,120]
[400544587,1767709050241,368.74649915,0.00030136,120]
[400544588,1767709051937,500.0,0.00030136,120]
[400544589,1767709052144,470.17404995,0.00030136,120]
[400544590,1767709053718,500.0,0.00030136,120]
[400544591,1767709055680,288.20125121,0.00030136,120]
[400544592,1767709057677,458.611371,0.00030136,120]
[400544593,1767709058490,500.0,0.00030136,120]
[400544594,1767709059816,500.0,0.00030136,120]
[400544595,1767709063383,500.0,0.00030136,120]
[400544597,1767709066455,500.0,0.00030136,120]
[400544598,1767709066816,500.0,0.00030136,120]
[400544599,1767709066953,500.0,0.00030136,120]
[400544600,1767709067104,445.94044668,0.00030136,120]
[400544602,1767709070048,500.0,0.00030136,120]
[400544603,1767709070647,500.0,0.00030136,120]
[400544604,1767709072316,500.0,0.00030136,120]
[400544605,1767709073828,500.0,0.00030136,120]
[400544606,1767709074036,500.0,0.00030136,120]
[400544607,1767709077518,246.06574684,0.00030136,120]
[400544608,1767709082034,500.0,0.00030136,120]
[400544609,1767709082697,449.60659954,0.00030136,120]
[400544610,1767709083888,534.95665801,0.00030136,120]
[400544611,1767709085736,500.0,0.00030136,120]
[400544612,1767709086487,500.0,0.00030136,120]
[400544613,1767709086815,500.0,0.00030136,120]
[400544614,1767709088279,500.0,0.00030136,120]
[400544615,1767709091475,500.0,0.00030136,120]
[400544617,1767709094800,500.0,0.00030136,120]
[400544618,1767709097161,494.9477924,0.00030136,120]
[400544619,1767709099182,276.81605758,0.00030136,120]
[400544620,1767709101148,500.0,0.00030136,120]
[400544621,1767709101428,491.70894409,0.00030136,120]
[400544622,1767709103015,500.0,0.00030136,120]
[400544623,1767709104225,500.0,0.00030136,120]
[400544624,1767709104818,500.0,0.00030136,120]
[400544625,1767709106030,500.0,0.00030136,120]
[400544626,1767709108195,500.0,0.00030136,120]
[400544627,1767709109331,500.0,0.00030136,120]
[400544628,1767709113191,500.0,0.00030136,120]
[400544629,1767709115509,500.0,0.00030136,120]
[400544630,1767709123064,500.0,0.00030136,120]
[400544631,1767709124874,500.0,0.00030136,120]
[400544632,1767709126849,500.0,0.00030136,120]
[400544633,1767709128744,500.0,0.00030136,120]
[400544634,1767709129804,500.0,0.00030136,120]
[400544635,1767709130553,500.57569547,0.00030136,120]
[400544636,1767709131222,491.00608833,0.00030136,120]
[400544637,1767709132304,500.0,0.00030136,120]
[400544638,1767709132406,500.0,0.00030136,120]
[400544639,1767709135116,471.14319687,0.00030136,120]
[400544640,1767709137369,510.40331893,0.00030136,120]
[400544641,1767709140837,500.0,0.00030136,120]
[400544642,1767709144301,500.0,0.00030136,120]
[400544643,1767709145339,488.14680477,0.00030136,120]
[400544644,1767709146201,354.9652675,0.00030136,120]
[400544646,1767709146659,241.07835429,0.00030136,120]
[400544647,1767709149689,368.2778709,0.00030136,120]
[400544648,1767709152649,500.0,0.00030136,120]
[400544649,1767709153665,500.0,0.00030136,120]
[400544650,1767709155003,500.0,0.00030136,120]
[400544651,1767709157028,500.0,0.00030136,120]
[400544652,1767709161795,500.0,0.00030136,120]
[400544653,1767709162463,500.0,0.00030136,120]
[400544654,1767709167157,500.0,0.00030136,120]
[400544655,1767709168353,444.10606235,0.00030136,120]
[400544656,1767709168942,500.0,0.00030136,120]
[400544657,1767709182337,500.0,0.00030136,120]
[400544658,1767709182540,604.2,0.00030136,120]
[400544659,1767709183850,586.13997534,0.00030136,120]
[400544660,1767709187299,500.0,0.00030136,120]
[400544661,1767709190539,591.24239039,0.00030136,120]
[400544662,1767709193015,506.43378085,0.00030136,120]
[400544663,1767709193183,500.0,0.00030136,120]
[400544664,1767709193989,500.0,0.00030136,120]
[400544665,1767709200417,557.18314729,0.00030136,120]
[400544666,1767709208570,543.25958388,0.00030136,120]
[400544667,1767709209584,500.0,0.00030136,120]
[400544668,1767709211175,500.0,0.00030136,120]
[400544669,1767709211319,500.0,0.00030136,120]
[400544670,1767709214457,500.0,0.00030136,120]
[400544671,1767709216454,500.0,0.00030136,120]
[400544672,1767709220516,364.68272011,0.00030136,120]
[400544673,1767709224589,504.43098034,0.00030136,120]
[400544674,1767709227442,188.54123673,0.00030136,120]
[400544675,1767709231784,500.0,0.00030136,120]
[400544676,1767709245894,491.01446362,0.00030136,120]
[400544677,1767709247095,251.10563816,0.00030136,120]
[400544678,1767709250668,500.0,0.00030136,120]
[400544679,1767709253822,243.25228987,0.00030136,120]
[400544680,1767709256873,520.84068596,0.00030136,120]
[400544681,1767709257732,500.0,0.00030136,120]
[400544682,1767709263651,500.0,0.00030136,120]
[400544683,1767709264620,217.011274,0.00030136,120]
[400544684,1767709264876,500.0,0.00030136,120]
[400544685,1767709265973,215.78155515,0.00030136,120]
[400544686,1767709267127,500.0,0.00030136,120]
[400544687,1767709272559,500.0,0.00030136,120]
[400544688,1767709281990,256.90349337,0.00030136,120]
[400544689,1767709283914,500.0,0.00030136,120]
[400544690,1767709284197,293.88386675,0.00030136,120]
[400544691,1767709289269,500.0,0.00030136,120]
[400544692,1767709295387,497.39038292,0.00030136,120]
[400544693,1767709297955,163.12087662,0.00030136,120]
[400544694,1767709299866,521.57208119,0.00030136,120]
[400544695,1767709310125,493.6442302,0.00030136,120]
[400544696,1767709315187,500.0,0.00030136,120]
[400544697,1767709318567,549.64168268,0.00030136,120]
[400544698,1767709323537,442.06852963,0.00030136,120]
[400544699,1767709327104,515.92155615,0.00030136,120]
[400544700,1767709327305,408.36437917,0.00030136,120]
[400544701,1767709334797,500.0,0.00030136,120]
[400544702,1767709341900,500.0,0.00030136,120]
[400544703,1767709345601,461.28365442,0.00030136,120]
[400544704,1767709416449,2016.0,0.000301,120]
[400544705,1767709446367,500.0,0.00030136,120]
[400544755,1767709472459,500.0,0.00030136,120]
[400544914,1767709484724,500.0,0.00030136,120]
[400545043,1767709494879,155.0,5e-05,2]
[400545144,1767709502668,500.0,0.00030136,120]
[400545187,1767709512761,500.0,0.00030136,120]
[400545188,1767709528611,500.0,0.00030136,120]
[400545189,1767709533657,266.30686267,0.00030136,120]
[400545190,1767709535573,240.67982636,0.00030136,120]
[400545420,1767709615844,208.28940618,0.00030136,120]
[400545667,1767709642958,480.0,0.00030136,120]
[400546106,1767709758699,-1000.0,0.0001,2]
[400546150,1767709834466,500.0,0.00030136,120]
[400546151,1767709834732,196.8195403,0.00030136,120]
[400546178,1767709838137,-1386.8966782,0.0001,2]
[400546180,1767709838148,-236.94460087,0.00010254,2]
[400546182,1767709838159,-5000.0,0.00010319,2]
[400546184,1767709838175,-300.0,0.00010684,2]
[400546186,1767709838186,-300.0,0.00010685,2]
[400546188,1767709838197,-300.0,0.00010685,2]
[400546190,1767709838207,-300.0,0.00010685,2]
[400546192,1767709838217,-300.0,0.00010685,2]
[400546194,1767709838227,-300.0,0.00010685,2]
[400546196,1767709838237,-300.0,0.00010685,2]
[400546199,1767709838253,-300.0,0.00010685,2]
[400546200,1767709838263,-300.0,0.00010685,2]
[400546203,1767709838274,-300.0,0.00010685,2]
[400546205,1767709838285,-300.0,0.00010685,2]
[400546206,1767709838296,-300.0,0.00010685,2]
[400546208,1767709838306,-300.0,0.00010685,2]
[400546210,1767709838317,-300.0,0.00010685,2]
[400546212,1767709838326,-300.0,0.00010685,2]
[400546214,1767709838336,-300.0,0.00010685,2]
[400546216,1767709838346,-600.0,0.00010898,2]
[400546218,1767709838357,-8775.31737418,0.00011382,2]
[400546220,1767709838367,-2579.17784983,0.00011382,2]
[400546222,1767709838377,-2462.94558633,0.00011542,2]
[400546224,1767709838387,-420.0,0.00011744,2]
[400546225,1767709838397,-500.0,0.00011753,2]
[400546227,1767709838408,-500.0,0.00011753,2]
[400546229,1767709838421,-500.0,0.0001189,2]
[400546231,1767709838431,-500.0,0.0001189,2]
[400546233,1767709838441,-294.64615256,0.00011926,2]
[400546234,1767709838451,-212.9793841,0.00011926,2]
[400546235,1767709838461,-154222.56984441,0.00011927,2]
[400546236,1767709838473,-3644.39,0.00011927,2]
[400546424,1767709844894,-585.61,0.0001,2]
[400546425,1767709844904,-585.61,0.000102,2]
[400546426,1767709844914,-162.06,0.00010371,2]
[400546427,1767709844924,-202.57,0.00011112,2]
[400546429,1767709844934,-243.09,0.00011853,2]
[400546430,1767709844943,-4071.335593,0.00011927,2]
[400546431,1767709844956,-441713.80784085,0.00011927,2]
[400546432,1767709844967,-1684.9544904,0.00011927,2]
[400546439,1767709845929,-585.61,0.000104,2]
[400546441,1767709845940,-29429.394407,0.00011927,2]
[400546452,1767709846239,-9438.08091152,0.00011927,2]
[400546453,1767709846251,-1337.380915,0.00011927,2]
[400546454,1767709846264,-348.6793053,0.00011927,2]
[400546455,1767709846274,-94066.0,0.00011927,2]
[400546456,1767709846289,-3583.68081457,0.00011927,2]
[400546457,1767709846301,-694.15367408,0.00011927,2]
[400546458,1767709852288,210.81912305,0.0002371,120]
[400546501,1767709916879,200.0,0.00030136,120]
[400546919,1767710279918,268.57,4.995e-05,2]
[400546920,1767710280263,268.57,4.995e-05,2]
[400546925,1767710287263,-255.51426216,9.618e-05,2]
[400546928,1767710289249,-44.48573784,9.618e-05,2]
[400546929,1767710289274,-113.21178645,9.619e-05,2]
[400546932,1767710290703,-463.96445002,9.619e-05,2]
[400547171,1767710452795,-374.93897584,9.521e-05,2]
[400547342,1767710688113,180.0,0.00030137,120]
[400547381,1767710848258,5000.0,9.274e-05,2]
[400547385,1767710897627,204.5843451,8.614e-05,2]
[400547388,1767710970364,162.23,7.948e-05,2]
[400547389,1767710970790,202.78,8.515e-05,2]
[400547390,1767710971309,243.34,9.083e-05,2]
[400547406,1767711032123,-4826.52444082,9.472e-05,2]
[400547408,1767711032132,-553.0,9.472e-05,2]
[400547410,1767711032143,-303.27898372,9.52e-05,2]
[400547412,1767711032152,-302.0,9.6e-05,2]
[400547414,1767711032162,-300.0,9.612e-05,2]
[400547416,1767711032171,-1200.0,9.612e-05,2]
[400547418,1767711032181,-500.0,9.613e-05,2]
[400547420,1767711032190,-500.0,9.613e-05,2]
[400547422,1767711032199,-500.0,9.613e-05,2]
[400547424,1767711032209,-500.0,9.613e-05,2]
[400547426,1767711032218,-500.0,9.613e-05,2]
[400547428,1767711032227,-500.0,9.613e-05,2]
[400547430,1767711032236,-500.0,9.613e-05,2]
[400547432,1767711032246,-500.0,9.613e-05,2]
[400547433,1767711032255,-500.0,9.613e-05,2]
[400547436,1767711032264,-500.0,9.613e-05,2]
[400547437,1767711032274,-500.0,9.613e-05,2]
[400547439,1767711032283,-399.9009526,9.613e-05,2]
[400547441,1767711032292,-500.0,9.613e-05,2]
[400547443,1767711032301,-500.0,9.613e-05,2]
[400547446,1767711032319,-500.0,9.613e-05,2]
[400547449,1767711032330,-500.0,9.613e-05,2]
[400547451,1767711032340,-500.0,9.613e-05,2]
[400547453,1767711032350,-500.0,9.613e-05,2]
[400547455,1767711032360,-500.0,9.613e-05,2]
[400547457,1767711032369,-500.0,9.613e-05,2]
[400547459,1767711032379,-500.0,9.613e-05,2]
[400547461,1767711032388,-500.0,9.613e-05,2]
[400547462,1767711032398,-500.0,9.613e-05,2]
[400547465,1767711032408,-500.0,9.613e-05,2]
[400547467,1767711032418,-500.0,9.613e-05,2]
[400547469,1767711032428,-500.0,9.613e-05,2]
[400547471,1767711032437,-307.33429756,9.613e-05,2]
[400547473,1767711032447,-155.78448282,9.613e-05,2]
[400547475,1767711032456,-500.0,9.613e-05,2]
[400547477,1767711032465,-500.0,9.613e-05,2]
[400547479,1767711032475,-250.55135168,9.613e-05,2]
[400547481,1767711032484,-500.0,9.613e-05,2]
[400547483,1767711032494,-500.0,9.613e-05,2]
[400547485,1767711032504,-500.0,9.613e-05,2]
[400547487,1767711032514,-500.0,9.613e-05,2]
[400547489,1767711032523,-500.0,9.613e-05,2]
[400547490,1767711032533,-500.0,9.613e-05,2]
[400547493,1767711032544,-500.0,9.613e-05,2]
[400547495,1767711032553,-500.0,9.613e-05,2]
[400547497,1767711032563,-500.0,9.613e-05,2]
[400547499,1767711032572,-248.74544177,9.613e-05,2]
[400547501,1767711032582,-500.0,9.613e-05,2]
[400547503,1767711032592,-500.0,9.613e-05,2]
[400547505,1767711032601,-500.0,9.613e-05,2]
[400547507,1767711032611,-500.0,9.613e-05,2]